[Event "Late-Titled-Tuesday-Blitz-February-20-2024"]
[Site "Chess.com"]
[Date "2024.02.20"]
[Round "11"]
[White "mirciulica14"]
[Black "JonSnowNW1"]
[Result "1-0"]
[WhiteElo "2660"]
[BlackElo "2516"]
[TimeControl "180+1"]
[EndTime "16:06:20 PST"]
[Termination "mirciulica14 won by resignation"]

1. Nf3 {[%clk 0:03:00.9]} 1... g6 {[%clk 0:02:58.4]} 2. g3 {[%clk 0:02:57.8]}
2... Bg7 {[%clk 0:02:58.4]} 3. Bg2 {[%clk 0:02:58]} 3... d5 {[%clk 0:02:58.7]}
4. O-O {[%clk 0:02:57.5]} 4... Nf6 {[%clk 0:02:59.3]} 5. b3 {[%clk 0:02:57.2]}
5... O-O {[%clk 0:02:59.9]} 6. Bb2 {[%clk 0:02:57.1]} 6... c5 {[%clk 0:02:59.1]}
7. e3 {[%clk 0:02:34.1]} 7... Nc6 {[%clk 0:02:57]} 8. Ne5 {[%clk 0:02:25.7]}
8... Qd6 {[%clk 0:02:45.9]} 9. Nxc6 {[%clk 0:02:17.1]} 9... bxc6 {[%clk
0:02:46.8]} 10. f4 {[%clk 0:02:08.5]} 10... Nh5 {[%clk 0:02:35.7]} 11. Bxg7
{[%clk 0:02:06.7]} 11... Nxg7 {[%clk 0:02:36.6]} 12. Nc3 {[%clk 0:01:59.7]}
12... e5 {[%clk 0:02:31.6]} 13. fxe5 {[%clk 0:01:46.4]} 13... Qxe5 {[%clk
0:02:32.5]} 14. Qf3 {[%clk 0:01:33.5]} 14... Ba6 {[%clk 0:02:31]} 15. Qf6 {[%clk
0:01:21.3]} 15... Qxf6 {[%clk 0:02:26.6]} 16. Rxf6 {[%clk 0:01:21]} 16... Ne6
{[%clk 0:02:27.2]} 17. Bf1 {[%clk 0:01:04.8]} 17... Bc8 {[%clk 0:02:17.9]} 18.
Bh3 {[%clk 0:00:45.1]} 18... Kg7 {[%clk 0:02:09.9]} 19. Rf2 {[%clk 0:00:43.8]}
19... Ng5 {[%clk 0:02:03.4]} 20. Bxc8 {[%clk 0:00:41.3]} 20... Raxc8 {[%clk
0:02:04.3]} 21. Kg2 {[%clk 0:00:36.2]} 21... d4 {[%clk 0:02:04.5]} 22. Na4
{[%clk 0:00:31.1]} 22... Ne6 {[%clk 0:01:52.4]} 23. Re1 {[%clk 0:00:26.2]} 23...
Rcd8 {[%clk 0:01:45.2]} 24. d3 {[%clk 0:00:25.8]} 24... h5 {[%clk 0:01:39.9]}
25. e4 {[%clk 0:00:20.8]} 25... Rh8 {[%clk 0:01:31.5]} 26. h4 {[%clk 0:00:20.4]}
26... Rhe8 {[%clk 0:01:25.9]} 27. Ref1 {[%clk 0:00:20.6]} 27... Re7 {[%clk
0:01:23.9]} 28. Nb2 {[%clk 0:00:21]} 28... Nf8 {[%clk 0:01:22.5]} 29. Nc4 {[%clk
0:00:20.9]} 29... Nd7 {[%clk 0:01:22.2]} 30. a4 {[%clk 0:00:20]} 30... Rc8
{[%clk 0:01:12.9]} 31. Kh3 {[%clk 0:00:19.7]} 31... Rc7 {[%clk 0:01:10.2]} 32.
g4 {[%clk 0:00:19]} 32... hxg4+ {[%clk 0:01:08]} 33. Kxg4 {[%clk 0:00:19.9]}
33... Ne5+ {[%clk 0:01:05.6]} 34. Nxe5 {[%clk 0:00:19.8]} 34... Rxe5 {[%clk
0:01:06.5]} 35. Rh1 {[%clk 0:00:18.3]} 35... Rh5 {[%clk 0:00:57.8]} 36. Rf4
{[%clk 0:00:11.8]} 36... Re7 {[%clk 0:00:57.4]} 37. Kg3 {[%clk 0:00:11.8]} 37...
f6 {[%clk 0:00:54]} 38. Rhf1 {[%clk 0:00:11.8]} 38... Re6 {[%clk 0:00:54.2]} 39.
Rg4 {[%clk 0:00:12]} 39... Kf7 {[%clk 0:00:50.3]} 40. Kh3 {[%clk 0:00:09.6]}
40... f5 {[%clk 0:00:44.1]} 41. exf5 {[%clk 0:00:09.5]} 41... Re3+ {[%clk
0:00:43.9]} 42. Rg3 {[%clk 0:00:09.4]} 42... Rxg3+ {[%clk 0:00:39.4]} 43. Kxg3
{[%clk 0:00:09.7]} 43... gxf5 {[%clk 0:00:39.9]} 44. Rh1 {[%clk 0:00:07.4]}
44... Kf6 {[%clk 0:00:39.7]} 45. Kf4 {[%clk 0:00:07.8]} 45... a5 {[%clk
0:00:37.7]} 46. Rh2 {[%clk 0:00:06.3]} 46... Rh8 {[%clk 0:00:37.6]} 47. h5
{[%clk 0:00:06.8]} 47... Rg8 {[%clk 0:00:37.7]} 48. h6 {[%clk 0:00:06.8]} 48...
Rg4+ {[%clk 0:00:31.8]} 49. Kf3 {[%clk 0:00:07.2]} 49... Rg8 {[%clk 0:00:32]}
50. h7 {[%clk 0:00:07.3]} 50... Rh8 {[%clk 0:00:31.7]} 51. Kf4 {[%clk 0:00:08]}
51... Kg6 {[%clk 0:00:28.5]} 52. Rh3 {[%clk 0:00:08.4]} 52... Kf6 {[%clk
0:00:07.3]} 53. Rh6+ {[%clk 0:00:08.6]} 53... Ke7 {[%clk 0:00:07.5]} 54. Rxc6
{[%clk 0:00:07.5]} 54... Kd7 {[%clk 0:00:05.3]} 55. Rh6 {[%clk 0:00:05.7]} 55...
Ke7 {[%clk 0:00:04.8]} 56. Kxf5 {[%clk 0:00:06.1]} 56... Kf7 {[%clk 0:00:05.3]}
57. Ke5 {[%clk 0:00:06.5]} 57... Kg7 {[%clk 0:00:04.3]} 58. Rh2 {[%clk
0:00:07.1]} 58... Rd8 {[%clk 0:00:03.2]} 59. h8=Q+ {[%clk 0:00:06.6]} 1-0

[Event "Late-Titled-Tuesday-Blitz-February-20-2024"]
[Site "Chess.com"]
[Date "2024.02.20"]
[Round "11"]
[White "Njal28"]
[Black "Phamtrangiaphuc2009"]
[Result "1-0"]
[WhiteElo "2998"]
[BlackElo "2513"]
[TimeControl "180+1"]
[EndTime "16:06:26 PST"]
[Termination "Njal28 won by checkmate"]

1. d4 {[%clk 0:02:59.4]} 1... Nf6 {[%clk 0:02:59.5]} 2. c4 {[%clk 0:02:57.8]}
2... e6 {[%clk 0:02:59.3]} 3. Nc3 {[%clk 0:02:58.4]} 3... Bb4 {[%clk 0:02:59.2]}
4. e3 {[%clk 0:02:59]} 4... c5 {[%clk 0:02:57]} 5. a3 {[%clk 0:02:59.1]} 5...
Bxc3+ {[%clk 0:02:56.5]} 6. bxc3 {[%clk 0:03:00]} 6... O-O {[%clk 0:02:56.5]} 7.
Ne2 {[%clk 0:03:00.7]} 7... Nc6 {[%clk 0:02:55.2]} 8. Ng3 {[%clk 0:03:00.6]}
8... b6 {[%clk 0:02:51.7]} 9. Be2 {[%clk 0:03:00.3]} 9... Na5 {[%clk 0:02:50.8]}
10. e4 {[%clk 0:02:59.8]} 10... Ba6 {[%clk 0:02:49.2]} 11. e5 {[%clk 0:02:13.6]}
11... Ne8 {[%clk 0:02:48.4]} 12. Nh5 {[%clk 0:02:13.3]} 12... f6 {[%clk
0:02:41.8]} 13. exf6 {[%clk 0:02:10.7]} 13... Nxf6 {[%clk 0:02:36]} 14. Bg5
{[%clk 0:02:10.4]} 14... Bxc4 {[%clk 0:02:29.5]} 15. Bxf6 {[%clk 0:02:06.1]}
15... Rxf6 {[%clk 0:02:28]} 16. Nxf6+ {[%clk 0:02:04.3]} 16... Qxf6 {[%clk
0:02:28.9]} 17. Bxc4 {[%clk 0:02:00.5]} 17... Nxc4 {[%clk 0:02:29]} 18. O-O
{[%clk 0:02:01.1]} 18... d5 {[%clk 0:02:29.1]} 19. Qe2 {[%clk 0:01:57.6]} 19...
Rc8 {[%clk 0:02:23.2]} 20. a4 {[%clk 0:01:54.5]} 20... Kf7 {[%clk 0:02:20.9]}
21. Rad1 {[%clk 0:01:47.1]} 21... Rc6 {[%clk 0:02:12]} 22. Rd3 {[%clk
0:01:47.2]} 22... Ke7 {[%clk 0:02:00.2]} 23. Rf3 {[%clk 0:01:46.6]} 23... Qg6
{[%clk 0:02:00.5]} 24. Re1 {[%clk 0:01:45.7]} 24... Kd7 {[%clk 0:01:56.7]} 25.
Rf8 {[%clk 0:01:40.5]} 25... Kc7 {[%clk 0:01:55.4]} 26. a5 {[%clk 0:01:26.6]}
26... Kb7 {[%clk 0:01:28.6]} 27. axb6 {[%clk 0:01:24.4]} 27... Rxb6 {[%clk
0:01:27.9]} 28. dxc5 {[%clk 0:01:24]} 28... Rb1 {[%clk 0:01:27.3]} 29. h3 {[%clk
0:01:14.6]} 29... Kc6 {[%clk 0:01:17.3]} 30. Rxb1 {[%clk 0:01:03.6]} 30... Qxb1+
{[%clk 0:01:16.4]} 31. Kh2 {[%clk 0:01:04.3]} 31... e5 {[%clk 0:01:00.6]} 32.
Rc8+ {[%clk 0:01:03.5]} 32... Kb7 {[%clk 0:00:59.9]} 33. Qg4 {[%clk 0:01:03.8]}
33... Qb5 {[%clk 0:00:53.5]} 34. c6+ {[%clk 0:00:59.5]} 34... Ka6 {[%clk
0:00:52.7]} 35. c7 {[%clk 0:00:57.5]} 35... Qb7 {[%clk 0:00:50.5]} 36. Rd8
{[%clk 0:00:38.3]} 36... Qxc7 {[%clk 0:00:44.8]} 37. Rxd5 {[%clk 0:00:38.6]}
37... e4+ {[%clk 0:00:38.5]} 38. g3 {[%clk 0:00:37.8]} 38... Nb6 {[%clk
0:00:38.6]} 39. Rd4 {[%clk 0:00:34]} 39... Qxc3 {[%clk 0:00:37]} 40. Qe2+ {[%clk
0:00:34.6]} 40... Ka5 {[%clk 0:00:31.8]} 41. Rxe4 {[%clk 0:00:33.2]} 41... Na4
{[%clk 0:00:26.4]} 42. Re5+ {[%clk 0:00:26.1]} 42... Nc5 {[%clk 0:00:26.4]} 43.
Rd5 {[%clk 0:00:20.6]} 43... Kb4 {[%clk 0:00:21.4]} 44. Rd8 {[%clk 0:00:19]}
44... a5 {[%clk 0:00:21.4]} 45. Rb8+ {[%clk 0:00:19.2]} 45... Ka3 {[%clk
0:00:21.7]} 46. Re8 {[%clk 0:00:19]} 46... Nb3 {[%clk 0:00:21.5]} 47. Re3 {[%clk
0:00:18.7]} 47... Qd4 {[%clk 0:00:20.2]} 48. Re4 {[%clk 0:00:14.3]} 48... Qd7
{[%clk 0:00:19]} 49. Qc4 {[%clk 0:00:09]} 49... h6 {[%clk 0:00:11.8]} 50. h4
{[%clk 0:00:08.6]} 50... g5 {[%clk 0:00:10.9]} 51. h5 {[%clk 0:00:09.2]} 51...
Qd2 {[%clk 0:00:07.6]} 52. Kg2 {[%clk 0:00:05.4]} 52... Qb4 {[%clk 0:00:07.2]}
53. Qe6 {[%clk 0:00:03.8]} 53... Qb7 {[%clk 0:00:06.4]} 54. Kh2 {[%clk
0:00:03.4]} 54... Nc5 {[%clk 0:00:06.3]} 55. Re3+ {[%clk 0:00:04]} 55... Kb4
{[%clk 0:00:06.1]} 56. Qg4+ {[%clk 0:00:03.8]} 56... Kb5 {[%clk 0:00:05.4]} 57.
Qe2+ {[%clk 0:00:04.5]} 57... Kb6 {[%clk 0:00:04.5]} 58. Qc4 {[%clk 0:00:05.1]}
58... Qc6 {[%clk 0:00:04.3]} 59. Re1 {[%clk 0:00:04.8]} 59... a4 {[%clk
0:00:04.5]} 60. Rb1+ {[%clk 0:00:05]} 60... Kc7 {[%clk 0:00:04.9]} 61. Qf7+
{[%clk 0:00:05.4]} 61... Nd7 {[%clk 0:00:04.4]} 62. Rd1 {[%clk 0:00:05.4]} 62...
a3 {[%clk 0:00:02.7]} 63. Rd3 {[%clk 0:00:06]} 63... a2 {[%clk 0:00:02.2]} 64.
Qxa2 {[%clk 0:00:06.2]} 64... Ne5 {[%clk 0:00:02.7]} 65. Qa5+ {[%clk 0:00:05.5]}
65... Kc8 {[%clk 0:00:01.8]} 66. Qxe5 {[%clk 0:00:05.1]} 66... Kb7 {[%clk
0:00:02.2]} 67. Rb3+ {[%clk 0:00:04.2]} 67... Ka6 {[%clk 0:00:02.4]} 68. Qa1+
{[%clk 0:00:04.5]} 68... Qa4 {[%clk 0:00:01.8]} 69. Qxa4# {[%clk 0:00:04.9]} 1-0

[Event "Late-Titled-Tuesday-Blitz-February-20-2024"]
[Site "Chess.com"]
[Date "2024.02.20"]
[Round "11"]
[White "sansanathalia"]
[Black "martinmena"]
[Result "0-1"]
[WhiteElo "2355"]
[BlackElo "2209"]
[TimeControl "180+1"]
[EndTime "16:06:29 PST"]
[Termination "martinmena won on time"]

1. e4 {[%clk 0:02:58.4]} 1... c6 {[%clk 0:02:59.7]} 2. d4 {[%clk 0:02:55.6]}
2... d5 {[%clk 0:03:00.6]} 3. exd5 {[%clk 0:02:53.5]} 3... cxd5 {[%clk
0:02:59.4]} 4. c4 {[%clk 0:02:51.9]} 4... Nf6 {[%clk 0:02:59.4]} 5. Nc3 {[%clk
0:02:49.6]} 5... g6 {[%clk 0:02:59.6]} 6. cxd5 {[%clk 0:02:47.5]} 6... Bg7
{[%clk 0:02:59.7]} 7. Bc4 {[%clk 0:02:46.9]} 7... O-O {[%clk 0:02:59.6]} 8. Nf3
{[%clk 0:02:43.4]} 8... Na6 {[%clk 0:02:51.4]} 9. Bf4 {[%clk 0:02:27.3]} 9...
Nc7 {[%clk 0:02:48.8]} 10. Bxc7 {[%clk 0:02:26.1]} 10... Qxc7 {[%clk 0:02:48.4]}
11. Bb3 {[%clk 0:02:18.1]} 11... a6 {[%clk 0:02:37.4]} 12. O-O {[%clk
0:02:14.8]} 12... b5 {[%clk 0:02:36.5]} 13. a3 {[%clk 0:02:13.3]} 13... Bb7
{[%clk 0:02:35]} 14. Qe2 {[%clk 0:02:09.3]} 14... Qd6 {[%clk 0:02:27.8]} 15. Qe5
{[%clk 0:02:05.7]} 15... Rfd8 {[%clk 0:02:19.4]} 16. Qxd6 {[%clk 0:01:53.2]}
16... Rxd6 {[%clk 0:02:17.2]} 17. Rfe1 {[%clk 0:01:52.9]} 17... Nxd5 {[%clk
0:02:01.5]} 18. Bxd5 {[%clk 0:01:42.8]} 18... Bxd5 {[%clk 0:02:00.2]} 19. Nxd5
{[%clk 0:01:42.2]} 19... Rxd5 {[%clk 0:02:01.1]} 20. Rxe7 {[%clk 0:01:41.2]}
20... Bxd4 {[%clk 0:01:59.9]} 21. Nxd4 {[%clk 0:01:33.9]} 21... Rxd4 {[%clk
0:01:59.6]} 22. Kf1 {[%clk 0:01:33.3]} 22... Rad8 {[%clk 0:01:57.6]} 23. Rae1
{[%clk 0:01:30.7]} 23... Rd2 {[%clk 0:01:56.7]} 24. R7e2 {[%clk 0:01:29.4]}
24... R2d3 {[%clk 0:01:55]} 25. Rc2 {[%clk 0:01:27.8]} 25... a5 {[%clk
0:01:46.9]} 26. g3 {[%clk 0:01:24.5]} 26... b4 {[%clk 0:01:45]} 27. axb4 {[%clk
0:01:19.3]} 27... axb4 {[%clk 0:01:45.9]} 28. Re4 {[%clk 0:01:19.1]} 28... b3
{[%clk 0:01:42.7]} 29. Rce2 {[%clk 0:01:18.6]} 29... Rd2 {[%clk 0:01:35.9]} 30.
Rb4 {[%clk 0:01:15.3]} 30... Rd1+ {[%clk 0:01:22.4]} 31. Kg2 {[%clk 0:01:13.2]}
31... R1d3 {[%clk 0:01:21.8]} 32. Re7 {[%clk 0:01:08.7]} 32... R8d5 {[%clk
0:00:55.3]} 33. Reb7 {[%clk 0:01:01]} 33... Rd2 {[%clk 0:00:39.2]} 34. Rxb3
{[%clk 0:00:58.9]} 34... Rc5 {[%clk 0:00:29.2]} 35. Rf3 {[%clk 0:00:56.2]} 35...
f5 {[%clk 0:00:27]} 36. b4 {[%clk 0:00:55.2]} 36... Rcc2 {[%clk 0:00:25.1]} 37.
b5 {[%clk 0:00:54.8]} 37... Rb2 {[%clk 0:00:25.2]} 38. b6 {[%clk 0:00:50.6]}
38... Rd6 {[%clk 0:00:25.3]} 39. Rb8+ {[%clk 0:00:50.2]} 39... Kg7 {[%clk
0:00:24.1]} 40. Rc3 {[%clk 0:00:42.2]} 40... Rdxb6 {[%clk 0:00:20.2]} 41. Rc7+
{[%clk 0:00:42.4]} 41... Kh6 {[%clk 0:00:18.7]} 42. Rh8 {[%clk 0:00:43]} 42...
g5 {[%clk 0:00:12.7]} 43. Rhxh7+ {[%clk 0:00:33.5]} 43... Kg6 {[%clk 0:00:13.1]}
44. Rhg7+ {[%clk 0:00:31.6]} 44... Kf6 {[%clk 0:00:13.1]} 45. h4 {[%clk
0:00:26.9]} 45... gxh4 {[%clk 0:00:11.2]} 46. gxh4 {[%clk 0:00:27.4]} 46... R6b4
{[%clk 0:00:11]} 47. h5 {[%clk 0:00:19.7]} 47... Rh4 {[%clk 0:00:09.9]} 48. Rg6+
{[%clk 0:00:17.4]} 48... Ke5 {[%clk 0:00:09.4]} 49. h6 {[%clk 0:00:16.1]} 49...
Rf4 {[%clk 0:00:08.7]} 50. h7 {[%clk 0:00:09.3]} 50... Rfxf2+ {[%clk 0:00:08.9]}
51. Kg3 {[%clk 0:00:06.7]} 51... Rg2+ {[%clk 0:00:07.1]} 52. Kf3 {[%clk
0:00:06.8]} 52... Rbf2+ {[%clk 0:00:05.8]} 53. Ke3 {[%clk 0:00:06.8]} 53... f4+
{[%clk 0:00:05.8]} 54. Kd3 {[%clk 0:00:06.4]} 54... Rd2+ {[%clk 0:00:06]} 55.
Kc3 {[%clk 0:00:06]} 55... Rc2+ {[%clk 0:00:05.8]} 56. Kb4 {[%clk 0:00:05.2]}
56... Rb2+ {[%clk 0:00:03.9]} 57. Ka3 {[%clk 0:00:03.8]} 57... Ra2+ {[%clk
0:00:04.2]} 58. Kb3 {[%clk 0:00:04.3]} 58... Rab2+ {[%clk 0:00:04.4]} 59. Ka4
{[%clk 0:00:04.7]} 59... Ra2+ {[%clk 0:00:04.5]} 60. Kb5 {[%clk 0:00:04.8]}
60... Rgb2+ {[%clk 0:00:04.8]} 61. Kc6 {[%clk 0:00:04.2]} 61... Rc2+ {[%clk
0:00:04.4]} 62. Kb7 {[%clk 0:00:01.8]} 62... Rcb2+ {[%clk 0:00:04.4]} 63. Kc8
{[%clk 0:00:01.7]} 63... Ra8+ {[%clk 0:00:04.2]} 64. Kd7 {[%clk 0:00:01.5]}
64... Rd2+ {[%clk 0:00:04.6]} 65. Ke7 {[%clk 0:00:01.8]} 65... Rh2 {[%clk
0:00:01.8]} 0-1

[Event "Late-Titled-Tuesday-Blitz-February-20-2024"]
[Site "Chess.com"]
[Date "2024.02.20"]
[Round "11"]
[White "LiemLe"]
[Black "MagnusCarlsen"]
[Result "1-0"]
[WhiteElo "3053"]
[BlackElo "3317"]
[TimeControl "180+1"]
[EndTime "16:06:37 PST"]
[Termination "LiemLe won on time"]

1. Nf3 {[%clk 0:03:00.9]} 1... d6 {[%clk 0:02:59.5]} 2. d4 {[%clk 0:03:00.3]}
2... Bg4 {[%clk 0:02:59.4]} 3. e4 {[%clk 0:02:59.7]} 3... e6 {[%clk 0:02:57.7]}
4. h3 {[%clk 0:02:58.8]} 4... Bh5 {[%clk 0:02:57.5]} 5. Nc3 {[%clk 0:02:56.2]}
5... Nf6 {[%clk 0:02:55.8]} 6. Qe2 {[%clk 0:02:52.8]} 6... Nc6 {[%clk
0:02:49.6]} 7. g4 {[%clk 0:02:46.5]} 7... Bg6 {[%clk 0:02:49.4]} 8. d5 {[%clk
0:02:44.8]} 8... Nb8 {[%clk 0:02:15.9]} 9. e5 {[%clk 0:02:10.7]} 9... dxe5
{[%clk 0:02:12.5]} 10. dxe6 {[%clk 0:02:11]} 10... Nc6 {[%clk 0:02:12.2]} 11.
Bg2 {[%clk 0:01:29.3]} 11... Bd6 {[%clk 0:02:03.5]} 12. exf7+ {[%clk 0:01:26.6]}
12... Bxf7 {[%clk 0:02:03]} 13. Be3 {[%clk 0:01:27.2]} 13... O-O {[%clk
0:02:01]} 14. O-O-O {[%clk 0:01:26.7]} 14... Qe7 {[%clk 0:01:57.6]} 15. Rhe1
{[%clk 0:01:23.7]} 15... Rae8 {[%clk 0:01:56]} 16. Qb5 {[%clk 0:01:20.8]} 16...
a6 {[%clk 0:01:41.3]} 17. Qa4 {[%clk 0:01:05]} 17... b5 {[%clk 0:01:15.4]} 18.
Qxa6 {[%clk 0:01:03.7]} 18... Nb4 {[%clk 0:01:15.6]} 19. Qxb5 {[%clk 0:00:52.8]}
19... Rb8 {[%clk 0:01:15]} 20. Qe2 {[%clk 0:00:51.8]} 20... Nxa2+ {[%clk
0:01:08.7]} 21. Nxa2 {[%clk 0:00:51.9]} 21... Bxa2 {[%clk 0:01:04.7]} 22. Bd4
{[%clk 0:00:48.1]} 22... e4 {[%clk 0:00:58.7]} 23. Nd2 {[%clk 0:00:46.3]} 23...
c5 {[%clk 0:00:43.5]} 24. Bc3 {[%clk 0:00:38.9]} 24... Nd5 {[%clk 0:00:39.6]}
25. Ba5 {[%clk 0:00:15.3]} 25... Be5 {[%clk 0:00:26.3]} 26. Nc4 {[%clk
0:00:15.7]} 26... Bxc4 {[%clk 0:00:16.3]} 27. Qxc4 {[%clk 0:00:16.6]} 27...
Bxb2+ {[%clk 0:00:13.5]} 28. Kd2 {[%clk 0:00:17]} 28... Rxf2+ {[%clk 0:00:08.4]}
29. Re2 {[%clk 0:00:17.5]} 29... Qg5+ {[%clk 0:00:08.2]} 30. Ke1 {[%clk
0:00:16.6]} 30... Rxe2+ {[%clk 0:00:08.4]} 31. Kxe2 {[%clk 0:00:16.5]} 31... Bd4
{[%clk 0:00:08.5]} 32. Bd2 {[%clk 0:00:11.1]} 32... Qe5 {[%clk 0:00:05.2]} 33.
c3 {[%clk 0:00:11.6]} 33... Kh8 {[%clk 0:00:04.3]} 34. cxd4 {[%clk 0:00:11.4]}
34... cxd4 {[%clk 0:00:05.2]} 35. Rf1 {[%clk 0:00:09.7]} 35... d3+ {[%clk
0:00:04.9]} 36. Kf2 {[%clk 0:00:06.8]} 36... e3+ {[%clk 0:00:04.2]} 37. Kg1
{[%clk 0:00:07.4]} 37... e2 {[%clk 0:00:03.7]} 38. Re1 {[%clk 0:00:07.3]} 38...
Ne3 {[%clk 0:00:02.5]} 39. Qxd3 {[%clk 0:00:07.6]} 39... Nxg2 {[%clk 0:00:02.8]}
40. Kxg2 {[%clk 0:00:08.3]} 40... Re8 {[%clk 0:00:02.9]} 41. Qf3 {[%clk
0:00:08.5]} 41... h6 {[%clk 0:00:02.7]} 42. Bc3 {[%clk 0:00:09]} 42... Qe7
{[%clk 0:00:02.7]} 43. Qf4 {[%clk 0:00:07.4]} 43... Kg8 {[%clk 0:00:02.3]} 44.
Qd4 {[%clk 0:00:06.4]} 44... Kh7 {[%clk 0:00:01.5]} 45. Qd3+ {[%clk 0:00:06.5]}
45... Kh8 {[%clk 0:00:01.8]} 46. Qf3 {[%clk 0:00:06.8]} 46... Kg8 {[%clk
0:00:02]} 47. Bd4 {[%clk 0:00:06.7]} 47... Kh8 {[%clk 0:00:02.1]} 48. Bf2 {[%clk
0:00:06.8]} 48... Kg8 {[%clk 0:00:02.5]} 49. Qb3+ {[%clk 0:00:06.2]} 49... Kh8
{[%clk 0:00:02.5]} 50. Qd5 {[%clk 0:00:06.8]} 50... Rf8 {[%clk 0:00:01.9]} 51.
Qd3 {[%clk 0:00:05.6]} 51... Re8 {[%clk 0:00:02.2]} 52. Rb1 {[%clk 0:00:03.6]}
52... Qf7 {[%clk 0:00:02.1]} 53. Qf3 {[%clk 0:00:03.3]} 53... Qe6 {[%clk
0:00:02.1]} 54. Be1 {[%clk 0:00:03.4]} 54... Kg8 {[%clk 0:00:02.3]} 55. Ra1
{[%clk 0:00:03.1]} 55... Rf8 {[%clk 0:00:02.5]} 56. Ra8 {[%clk 0:00:03.7]} 56...
Rxa8 {[%clk 0:00:02.2]} 57. Qxa8+ {[%clk 0:00:04.6]} 57... Kh7 {[%clk
0:00:02.7]} 58. Qf3 {[%clk 0:00:05.5]} 58... h5 {[%clk 0:00:02.6]} 59. gxh5
{[%clk 0:00:04.1]} 59... Kh6 {[%clk 0:00:02.3]} 60. Bd2+ {[%clk 0:00:04.2]}
60... Kh7 {[%clk 0:00:02.6]} 61. Kf2 {[%clk 0:00:04.9]} 61... Qe5 {[%clk
0:00:02.4]} 62. Qxe2 {[%clk 0:00:04.7]} 62... Qh2+ {[%clk 0:00:02.6]} 63. Ke3
{[%clk 0:00:04.7]} 63... Qxh3+ {[%clk 0:00:03.5]} 64. Qf3 {[%clk 0:00:04.8]}
64... Qe6+ {[%clk 0:00:03.4]} 65. Qe4+ {[%clk 0:00:04.5]} 1-0

[Event "Late-Titled-Tuesday-Blitz-February-20-2024"]
[Site "Chess.com"]
[Date "2024.02.20"]
[Round "11"]
[White "FairChess_on_YouTube"]
[Black "Hrant_ChessMood"]
[Result "1-0"]
[WhiteElo "3074"]
[BlackElo "3008"]
[TimeControl "180+1"]
[EndTime "16:06:54 PST"]
[Termination "FairChess_on_YouTube won on time"]

1. Nf3 {[%clk 0:03:00.9]} 1... c5 {[%clk 0:02:54.4]} 2. g3 {[%clk 0:02:59.1]}
2... Nc6 {[%clk 0:02:53.8]} 3. Bg2 {[%clk 0:02:56.9]} 3... e5 {[%clk 0:02:54.2]}
4. c4 {[%clk 0:02:55.4]} 4... Nf6 {[%clk 0:02:42.2]} 5. Nc3 {[%clk 0:02:54.6]}
5... g6 {[%clk 0:02:41.7]} 6. d3 {[%clk 0:02:52.5]} 6... Bg7 {[%clk 0:02:42.2]}
7. Bg5 {[%clk 0:02:50.6]} 7... d6 {[%clk 0:02:40.7]} 8. Nd2 {[%clk 0:02:48.3]}
8... h6 {[%clk 0:02:39.1]} 9. Bxf6 {[%clk 0:02:48.2]} 9... Bxf6 {[%clk 0:02:40]}
10. Nde4 {[%clk 0:02:41.9]} 10... Bg7 {[%clk 0:02:32.2]} 11. Nb5 {[%clk
0:02:38.7]} 11... Bf8 {[%clk 0:02:32.2]} 12. O-O {[%clk 0:02:33]} 12... Be7
{[%clk 0:02:26.3]} 13. Qd2 {[%clk 0:02:31.3]} 13... f5 {[%clk 0:02:19]} 14. Nec3
{[%clk 0:02:29.8]} 14... a6 {[%clk 0:02:15.9]} 15. Na3 {[%clk 0:02:29.9]} 15...
Kf7 {[%clk 0:02:10.5]} 16. Nd5 {[%clk 0:02:26.8]} 16... Kg7 {[%clk 0:02:08.6]}
17. Rab1 {[%clk 0:02:23]} 17... Be6 {[%clk 0:02:03.1]} 18. Nc2 {[%clk
0:02:08.7]} 18... a5 {[%clk 0:01:57.2]} 19. a3 {[%clk 0:02:07.6]} 19... a4
{[%clk 0:01:45]} 20. b4 {[%clk 0:02:07.5]} 20... axb3 {[%clk 0:01:45.5]} 21.
Rxb3 {[%clk 0:02:07.6]} 21... Ra7 {[%clk 0:01:46.1]} 22. Rfb1 {[%clk 0:02:07.1]}
22... Bc8 {[%clk 0:01:45.7]} 23. Nb6 {[%clk 0:02:03.8]} 23... Be6 {[%clk
0:01:44.7]} 24. Qc1 {[%clk 0:01:44]} 24... h5 {[%clk 0:01:43.3]} 25. Bd5 {[%clk
0:01:29.3]} 25... Bxd5 {[%clk 0:01:19.9]} 26. Nxd5 {[%clk 0:01:30.2]} 26... Na5
{[%clk 0:01:14.2]} 27. Rb5 {[%clk 0:01:23.3]} 27... h4 {[%clk 0:01:14.4]} 28.
Qe3 {[%clk 0:01:11.6]} 28... hxg3 {[%clk 0:01:06]} 29. hxg3 {[%clk 0:01:11.2]}
29... Bg5 {[%clk 0:01:03.3]} 30. Qf3 {[%clk 0:01:06.1]} 30... Qd7 {[%clk
0:00:58.6]} 31. Ne1 {[%clk 0:00:49.3]} 31... Bd8 {[%clk 0:00:56.4]} 32. Qg2
{[%clk 0:00:46.8]} 32... Kf8 {[%clk 0:00:53.5]} 33. Nf3 {[%clk 0:00:45.6]} 33...
Qh7 {[%clk 0:00:48.7]} 34. Nd2 {[%clk 0:00:42.1]} 34... Nc6 {[%clk 0:00:48.7]}
35. e3 {[%clk 0:00:42]} 35... Qd7 {[%clk 0:00:41.6]} 36. R5b3 {[%clk 0:00:37.9]}
36... Rh7 {[%clk 0:00:41.8]} 37. Nc3 {[%clk 0:00:36.4]} 37... Na5 {[%clk
0:00:28.7]} 38. R3b2 {[%clk 0:00:34.6]} 38... g5 {[%clk 0:00:25]} 39. Qd5 {[%clk
0:00:26.3]} 39... g4 {[%clk 0:00:22.6]} 40. e4 {[%clk 0:00:21.4]} 40... f4
{[%clk 0:00:18]} 41. gxf4 {[%clk 0:00:18.4]} 41... exf4 {[%clk 0:00:18.4]} 42.
e5 {[%clk 0:00:15.1]} 42... dxe5 {[%clk 0:00:14]} 43. Qxe5 {[%clk 0:00:13.6]}
43... f3 {[%clk 0:00:08.3]} 44. Qxc5+ {[%clk 0:00:08.7]} 44... Qe7 {[%clk
0:00:06.7]} 45. Nde4 {[%clk 0:00:05.6]} 45... Nc6 {[%clk 0:00:05.2]} 46. Nd5
{[%clk 0:00:05.2]} 46... Qxc5 {[%clk 0:00:04.9]} 47. Nxc5 {[%clk 0:00:06.1]}
47... Nd4 {[%clk 0:00:05.5]} 48. Re1 {[%clk 0:00:04.6]} 48... Rxa3 {[%clk
0:00:03.8]} 49. Rbb1 {[%clk 0:00:03]} 49... Ne2+ {[%clk 0:00:02.5]} 50. Rxe2
{[%clk 0:00:03.4]} 50... fxe2 {[%clk 0:00:03.4]} 51. Ne6+ {[%clk 0:00:04]} 51...
Ke8 {[%clk 0:00:03.5]} 52. Nef4 {[%clk 0:00:04.6]} 52... Bg5 {[%clk 0:00:03.3]}
53. Re1 {[%clk 0:00:02.3]} 53... Kf8 {[%clk 0:00:02.6]} 54. Ne6+ {[%clk
0:00:01.4]} 54... Kg8 {[%clk 0:00:03.1]} 55. Nxg5 {[%clk 0:00:02.3]} 55... Rh6
{[%clk 0:00:02.5]} 56. Rxe2 {[%clk 0:00:02.1]} 56... Rxd3 {[%clk 0:00:03.2]} 57.
Re8+ {[%clk 0:00:02.2]} 57... Kg7 {[%clk 0:00:03.2]} 58. Ne4 {[%clk 0:00:02.1]}
58... Rd4 {[%clk 0:00:03.2]} 59. Ng3 {[%clk 0:00:01.7]} 59... Rxc4 {[%clk
0:00:03.2]} 60. Nf5+ {[%clk 0:00:01.7]} 60... Kf7 {[%clk 0:00:03.7]} 61. Re7+
{[%clk 0:00:01.1]} 61... Kg6 {[%clk 0:00:03.1]} 62. Nxh6 {[%clk 0:00:02]} 62...
Kxh6 {[%clk 0:00:04]} 63. Rxb7 {[%clk 0:00:02.4]} 63... Kg5 {[%clk 0:00:03.8]}
64. Kg2 {[%clk 0:00:02.6]} 64... Rd4 {[%clk 0:00:03.4]} 65. Rb5 {[%clk
0:00:02.8]} 65... Kh4 {[%clk 0:00:03.5]} 66. Ne3 {[%clk 0:00:03.4]} 66... Rf4
{[%clk 0:00:02.8]} 67. Nf5+ {[%clk 0:00:03.2]} 67... Kg5 {[%clk 0:00:03.5]} 68.
Ng3+ {[%clk 0:00:03.8]} 68... Kg6 {[%clk 0:00:04.2]} 69. Re5 {[%clk 0:00:03.9]}
69... Rf8 {[%clk 0:00:03.6]} 70. Re4 {[%clk 0:00:04]} 70... Kg5 {[%clk
0:00:03.9]} 71. Ra4 {[%clk 0:00:04.6]} 71... Kh4 {[%clk 0:00:04.3]} 72. Nf1
{[%clk 0:00:04.2]} 72... Rg8 {[%clk 0:00:01.9]} 73. Ne3 {[%clk 0:00:04.4]} 73...
Rg7 {[%clk 0:00:02.5]} 74. Nf5+ {[%clk 0:00:03.8]} 1-0